bitfinex-derivatives/quotes_BTCF0:USTF0_20251229
["timestamp","ask_amount","ask_price","bid_price","bid_amount"]
[1767020319560,0.0114469,87463.0,87439.0,0.0114499]
[1767020319745,0.00017147,87460.0,87442.0,0.00017147]
[1767020319945,0.0114475,87458.0,87442.0,0.00017147]
[1767020320258,0.15504,87459.0,87442.0,0.00017147]
[1767020320660,0.00017147,87460.0,87442.0,0.00017147]
[1767020321455,0.00011726,87462.0,87443.0,0.1143504]
[1767020321761,0.0114472,87461.0,87443.0,0.1143504]
[1767020321957,0.0114476,87458.0,87442.0,0.00013147]
[1767020322250,0.00011726,87462.0,87427.0,0.09724]
[1767020322251,7.726e-05,87462.0,87427.0,0.09724]
[1767020322453,0.0114488,87449.0,87427.0,0.09724]
[1767020322654,7.726e-05,87462.0,87427.0,0.09724]
[1767020322958,0.10372,87461.0,87433.0,0.0114508]
[1767020323253,0.00017147,87456.0,87438.0,0.00017147]
[1767020323752,0.15512,87455.0,87438.0,0.00017147]
[1767020324354,0.166568,87455.0,87438.0,0.00017147]
[1767020324758,0.15512,87455.0,87438.0,0.00017147]
[1767020324953,0.0114481,87454.0,87438.0,0.00017147]
[1767020325258,0.0114485,87451.0,87438.0,0.00017147]
[1767020325856,0.15512,87455.0,87430.0,0.00416]
[1767020326054,0.0114486,87450.0,87430.0,0.00416]
[1767020326648,0.15512,87449.0,87431.0,0.11435825]
[1767020326850,0.15512,87449.0,87431.0,0.12592374]
[1767020327049,0.011448,87455.0,87431.0,0.12592374]
[1767020327248,0.05788,87449.0,87431.0,0.12592374]
[1767020327451,0.05788,87449.0,87435.0,0.0114505]
[1767020328156,0.05788,87449.0,87434.0,0.0114506]
[1767020328555,0.05788,87449.0,87432.0,0.0114508]
[1767020328856,0.0114481,87454.0,87432.0,0.0114508]
[1767020329051,0.0114481,87454.0,87431.0,0.00011449]
[1767020329052,0.1665682,87453.0,87431.0,0.00011449]
[1767020329256,0.0114487,87450.0,87432.0,0.0114509]
[1767020329457,0.00017147,87456.0,87435.0,0.0114505]
[1767020329753,0.1665679,87455.0,87433.0,0.0114507]
[1767020329957,0.0114483,87452.0,87433.0,0.0114507]
[1767020330151,0.15512,87455.0,87433.0,0.0114507]
[1767020330347,0.15516,87454.0,87436.0,0.0114503]
[1767020330856,0.0114482,87453.0,87432.0,0.12580774]
[1767020331054,0.0114482,87453.0,87435.0,0.0114505]
[1767020331354,0.15516,87454.0,87434.0,0.0114506]
[1767020331654,0.00017147,87456.0,87432.0,0.09728]
[1767020331854,0.09282926,87492.0,87432.0,0.09728]
[1767020331855,0.09728,87470.0,87432.0,0.15516]
[1767020332057,0.0114432,87491.0,87456.0,0.0114478]
[1767020332255,0.0114423,87498.0,87432.0,0.15516]
[1767020332256,0.011445,87478.0,87458.0,0.0114475]
[1767020332462,0.05788,87490.0,87446.0,0.09728]
[1767020332463,0.166605,87477.0,87449.0,0.09728]
[1767020332657,0.011445,87477.0,87449.0,0.09728]
[1767020332856,0.00017147,87472.0,87454.0,0.00017147]
[1767020333059,0.0114449,87478.0,87458.0,0.0114474]
[1767020333363,0.0114452,87476.0,87458.0,0.0114474]
[1767020333556,0.0114449,87479.0,87461.0,0.011447]
[1767020333855,0.09728,87480.0,87459.0,0.11433406]
[1767020334062,0.0114464,87467.0,87446.0,0.09728]
[1767020334451,0.0114462,87468.0,87449.0,0.0114487]
[1767020334647,0.00017147,87478.0,87446.0,0.09728]
[1767020334954,0.00017147,87478.0,87450.0,0.11432491]
[1767020335156,0.00017147,87478.0,87455.0,0.00017147]
[1767020335762,0.0114467,87465.0,87455.0,0.00017147]
[1767020336064,0.09728,87467.0,87437.0,0.09728]
[1767020336256,0.15516,87466.0,87437.0,0.09728]
[1767020336557,0.0114483,87452.0,87431.0,0.11432948]
[1767020336764,0.0114483,87452.0,87430.0,0.0156112]
[1767020336964,0.00017147,87450.0,87434.0,0.0114505]
[1767020337168,0.00017147,87450.0,87432.0,0.00011449]
[1767020337365,0.0114487,87449.0,87432.0,0.00011449]
[1767020337763,0.00017147,87450.0,87432.0,0.00011449]
[1767020337967,0.0114496,87443.0,87432.0,0.00011449]
[1767020338156,0.0114491,87446.0,87432.0,0.00011449]
[1767020338762,0.0114495,87443.0,87432.0,0.00011449]
[1767020339063,0.0114502,87438.0,87432.0,0.00011449]
[1767020339264,0.0114506,87434.0,87398.0,9e-08]
[1767020339459,0.0114533,87414.0,87370.0,0.04174321]
[1767020339662,0.15516,87413.0,87370.0,0.04174321]
[1767020339866,0.01145,87439.0,87377.0,0.011458]
[1767020339867,0.0114542,87407.0,87377.0,0.011458]
[1767020340061,0.0114547,87404.0,87373.0,0.0114586]
[1767020340367,0.2432,87421.0,87370.0,0.04174321]
[1767020340368,0.01162668,87401.0,87370.0,0.04174321]
[1767020340568,0.00017158,87401.0,87374.0,0.1144276]
[1767020340958,0.00024,87400.0,87381.0,0.0114575]
[1767020341163,0.00024,87400.0,87374.0,0.1144276]
[1767020341164,0.09752,87400.0,87375.0,0.0114583]
[1767020341467,0.09752,87400.0,87370.0,0.04174321]
[1767020342364,0.0114561,87393.0,87370.0,0.04169321]
[1767020342563,0.20784578,87390.0,87370.0,0.04169321]
[1767020342764,0.09728,87389.0,87370.0,0.04169321]
[1767020342965,0.05796,87388.0,87370.0,0.04169321]
[1767020345160,0.09728,87389.0,87370.0,0.04169321]
[1767020345362,0.1087367,87389.0,87370.0,0.04169321]
[1767020345568,0.09728,87389.0,87371.0,0.0114588]
[1767020345764,0.20784578,87381.0,87358.0,0.0028]
[1767020345959,0.00017168,87378.0,87359.0,0.0114604]
[1767020346155,0.00017168,87378.0,87360.0,0.0114603]
[1767020346568,0.00017168,87378.0,87359.0,0.11444266]
[1767020346569,0.00017168,87378.0,87359.0,0.12590306]
[1767020347163,0.00017168,87378.0,87357.0,0.09732]
[1767020347358,0.00017168,87378.0,87360.0,0.11445772]
[1767020347768,0.00017168,87378.0,87357.0,0.09732]
[1767020347769,0.0114581,87377.0,87357.0,0.09732]
[1767020347970,0.0114586,87374.0,87357.0,0.09732]
[1767020348172,0.0114586,87374.0,87347.0,0.01159592]
[1767020348173,0.21930478,87370.0,87347.0,0.00013402]
[1767020348470,0.0114594,87368.0,87347.0,0.00013402]
[1767020348772,0.0114598,87365.0,87338.0,0.00228997]
[1767020348972,0.00017168,87360.0,87338.0,0.00228997]
[1767020349173,0.20784578,87350.0,87339.0,0.11446886]
[1767020349367,0.09732,87349.0,87326.0,0.0114647]
[1767020349568,0.05792,87348.0,87325.0,0.09732]
[1767020349758,0.00011899,87348.0,87330.0,0.0114642]
[1767020349964,0.00011899,87348.0,87326.0,0.97593366]
[1767020350166,0.05792,87347.0,87317.0,0.09732]
[1767020350359,0.20784578,87340.0,87317.0,0.09732]
[1767020350558,0.20784578,87340.0,87323.0,0.11449966]
[1767020350772,0.00017168,87341.0,87317.0,0.09732]
[1767020351170,0.09756,87340.0,87318.0,0.11450622]
[1767020351374,8e-08,87341.0,87330.0,0.0114642]
[1767020351670,8e-08,87341.0,87337.0,0.0114633]
[1767020351972,0.05792,87358.0,87329.0,0.09732]
[1767020352180,0.09732,87374.0,87348.0,0.0114618]
[1767020352373,0.15524,87373.0,87351.0,0.0114615]
[1767020352568,0.09736,87372.0,87351.0,0.0114615]
[1767020352769,0.00017168,87370.0,87354.0,0.011461]
[1767020352970,0.20784578,87400.0,87363.0,0.0114599]
[1767020353169,0.20784578,87390.0,87360.0,0.0114603]
[1767020353372,0.20784578,87380.0,87355.0,0.11446689]
[1767020353573,0.09736,87379.0,87345.0,0.15528]
[1767020353875,0.15527,87379.0,87346.0,0.11446689]
[1767020354073,1.68e-06,87371.0,87354.0,0.00017168]
[1767020354373,0.06128438,87422.0,87354.0,0.00017168]
[1767020354374,0.0114528,87418.0,87355.0,0.15532]
[1767020354572,0.20784578,87410.0,87380.0,0.0114577]
[1767020354772,0.0114549,87402.0,87378.0,0.0114579]
[1767020354979,0.20784578,87400.0,87378.0,0.0114579]
[1767020355177,0.00017168,87398.0,87380.0,0.00017168]
[1767020355776,0.09736,87397.0,87380.0,0.00017168]
[1767020356074,0.0114548,87403.0,87380.0,0.01162938]
[1767020356378,0.0114548,87403.0,87382.0,0.0114575]
[1767020356572,0.1088142,87407.0,87381.0,0.11438087]
[1767020356773,0.0114546,87404.0,87381.0,0.0114575]
[1767020356970,0.0114518,87426.0,87384.0,0.0114571]
[1767020357167,0.0114518,87426.0,87380.0,0.00017168]
[1767020357168,0.0114535,87413.0,87390.0,0.0114563]
[1767020357368,0.0114535,87413.0,87381.0,0.11443087]
[1767020357369,0.0114537,87411.0,87387.0,0.1088168]
[1767020357679,0.0114537,87411.0,87391.0,0.11442433]
[1767020357874,0.0114537,87411.0,87387.0,0.1088168]
[1767020358179,0.20784578,87400.0,87371.0,0.0114588]
[1767020358381,0.15528,87399.0,87367.0,0.09736]
[1767020358681,0.0114565,87390.0,87367.0,0.22323456]
[1767020358868,0.0114565,87390.0,87362.0,9.224e-05]
[1767020358869,0.15532,87389.0,87362.0,9.224e-05]
[1767020359065,0.0114589,87372.0,87362.0,9.224e-05]
[1767020359269,0.0114589,87372.0,87358.0,0.00017168]
[1767020359689,0.20784578,87370.0,87345.0,0.05796]
[1767020359877,0.0114594,87368.0,87340.0,0.0114629]
[1767020360075,0.00017168,87376.0,87350.0,0.11444462]
[1767020360278,9.657e-05,87375.0,87350.0,0.11444462]
[1767020360579,0.1104,87374.0,87346.0,0.0114622]
[1767020360773,0.0114594,87368.0,87351.0,0.00017168]
[1767020360974,0.0114588,87372.0,87351.0,0.00017168]
[1767020361173,0.15532,87371.0,87352.0,0.0114614]
[1767020361480,0.15532,87371.0,87351.0,0.00017168]
[1767020361481,0.20784578,87370.0,87351.0,0.00017168]
[1767020361671,0.15532,87371.0,87351.0,0.00017168]
[1767020361978,0.15532,87370.0,87351.0,0.00017168]
[1767020362273,0.0114593,87368.0,87351.0,0.00017168]
[1767020362476,0.0114608,87357.0,87351.0,8e-08]
[1767020362674,0.20784578,87370.0,87351.0,8e-08]
[1767020362675,0.15532,87360.0,87351.0,8e-08]
[1767020362870,0.15532,87365.0,87351.0,8e-08]
[1767020363175,9.657e-05,87375.0,87358.0,0.0114606]
[1767020363376,0.15532,87374.0,87360.0,0.0114603]
[1767020363568,9.657e-05,87375.0,87360.0,0.0114603]
[1767020363771,0.09736,87380.0,87360.0,0.0114603]
[1767020364074,0.05796,87379.0,87361.0,0.11447476]
[1767020364274,0.0114581,87378.0,87361.0,0.11447476]
[1767020364776,0.0114581,87378.0,87361.0,0.09736]
[1767020364777,8e-08,87378.0,87361.0,0.09736]
[1767020364980,0.05796,87388.0,87361.0,0.09736]
[1767020365278,0.05796,87397.0,87377.0,0.0114581]
[1767020365475,0.0114554,87398.0,87377.0,0.0114581]
[1767020365675,0.0114559,87395.0,87374.0,0.09736]
[1767020365871,0.00017168,87393.0,87376.0,0.00017168]
[1767020366073,0.0114562,87392.0,87376.0,0.00017168]
[1767020366269,0.00017168,87393.0,87376.0,0.00017168]
[1767020366474,0.0114566,87389.0,87376.0,0.00017168]
[1767020366670,0.0114566,87389.0,87377.0,0.11443677]
[1767020366872,0.00017168,87393.0,87377.0,0.11443677]
[1767020367471,0.26913016,87420.0,87377.0,0.11443677]
[1767020367778,0.0238031,87419.0,87377.0,0.11443677]
[1767020367981,0.0114531,87416.0,87394.0,0.0114559]
[1767020368283,0.0114531,87416.0,87399.0,0.0114552]
[1767020368284,0.1211631,87415.0,87399.0,0.0114552]
[1767020368576,0.1211631,87415.0,87391.0,0.09736]
[1767020368577,0.0114542,87407.0,87398.0,0.00017168]
[1767020368781,0.02383394,87406.0,87398.0,8e-08]
[1767020368989,0.02383413,87405.0,87398.0,8e-08]
[1767020369277,0.00017168,87416.0,87398.0,8e-08]
[1767020369481,0.0114546,87405.0,87398.0,8e-08]
[1767020370782,0.0114543,87407.0,87398.0,8e-08]
[1767020371075,0.02383464,87406.0,87398.0,8e-08]
[1767020371279,0.00017168,87416.0,87399.0,0.26973451]
[1767020371468,0.02382999,87415.0,87399.0,0.26973451]
[1767020371667,0.02382999,87414.0,87399.0,0.26973451]
[1767020371975,0.02382999,87413.0,87400.0,0.0114551]
[1767020372174,0.0114517,87427.0,87399.0,0.26973451]
[1767020372373,0.00017168,87422.0,87399.0,0.15532]
[1767020372572,0.00017168,87422.0,87406.0,0.0114542]
[1767020372784,0.00017168,87422.0,87402.0,0.0114547]
[1767020373080,0.00017168,87422.0,87399.0,0.15532]
[1767020373289,0.00017168,87422.0,87403.0,0.11439815]
[1767020373578,0.05319311,87440.0,87399.0,0.15532]
[1767020373770,0.15528,87439.0,87419.0,0.0114526]
[1767020373974,0.15528,87439.0,87414.0,0.15528]
[1767020374169,0.04174321,87440.0,87421.0,0.0114523]
[1767020374369,0.04174321,87440.0,87414.0,0.15528]
[1767020374370,0.04174321,87440.0,87433.0,0.0114507]
[1767020374574,0.09736,87448.0,87429.0,0.0114513]
[1767020374783,0.05792,87451.0,87432.0,0.0114509]
[1767020375082,0.05792,87454.0,87431.0,0.011451]
[1767020375281,0.0114487,87449.0,87427.0,0.0114515]
[1767020375579,0.0114487,87449.0,87430.0,0.11439095]
[1767020375789,0.15528,87454.0,87430.0,0.11439095]
[1767020375974,0.06128438,87471.0,87430.0,0.11439095]
[1767020376281,0.06128438,87477.0,87430.0,0.32223673]
[1767020376488,0.0114456,87473.0,87445.0,0.01162067]
[1767020376677,0.0114459,87471.0,87445.0,0.01162067]
[1767020376877,0.15528,87472.0,87445.0,0.00017157]
[1767020376878,0.0114462,87468.0,87445.0,0.00017157]
[1767020377683,0.09736,87470.0,87448.0,0.0114487]
[1767020377884,0.09736,87470.0,87446.0,0.11434059]
[1767020378090,0.09736,87470.0,87445.0,0.00017157]
[1767020378388,0.09736,87470.0,87446.0,0.11433929]
[1767020378592,0.0114461,87469.0,87446.0,0.11433929]
[1767020378777,0.09736,87470.0,87450.0,0.0114485]
[1767020378981,0.09736,87470.0,87453.0,0.0114481]
[1767020379182,0.05792,87475.0,87453.0,0.0114481]
[1767020379383,0.05792,87475.0,87454.0,0.11433798]
[1767020379585,0.05792,87475.0,87455.0,0.0114478]
[1767020379790,0.05792,87477.0,87457.0,0.0114476]
[1767020380282,0.0114439,87486.0,87452.0,0.09732]
[1767020380483,0.0114455,87474.0,87460.0,0.00017157]
[1767020380688,0.20784578,87480.0,87460.0,7e-08]
[1767020380876,0.15524,87479.0,87453.0,0.05792]
[1767020381079,0.20784578,87510.0,87461.0,0.11433144]
[1767020381280,0.0114436,87489.0,87465.0,0.0114465]
[1767020381576,0.011443,87493.0,87468.0,0.0114461]
[1767020381781,0.00017124,87489.0,87472.0,0.00017147]
[1767020381982,0.00017124,87489.0,87462.0,0.00933164]
[1767020381983,0.1666837,87488.0,87462.0,0.00933164]
[1767020382197,0.15524,87488.0,87461.0,0.11433144]
[1767020382488,0.15524,87488.0,87458.0,0.0693675]
[1767020382489,0.0114444,87482.0,87458.0,0.05792]
[1767020382678,0.0113944,87482.0,87459.0,0.11431118]
[1767020383084,0.0113944,87482.0,87462.0,0.00017147]
[1767020383285,0.0114446,87480.0,87462.0,0.00017147]
[1767020383589,0.15524,87488.0,87462.0,0.00017147]
[1767020383590,0.0114454,87475.0,87462.0,0.00017147]
[1767020383787,0.05792,87479.0,87413.0,0.0114534]
[1767020383788,0.0114462,87468.0,87445.0,0.06337502]
[1767020383986,0.05792,87468.0,87449.0,0.0004]
[1767020384289,0.05792,87468.0,87450.0,0.0114485]
[1767020384592,0.05792,87468.0,87453.0,0.11432425]
[1767020385086,0.05792,87468.0,87452.0,0.00017147]
[1767020385475,0.05792,87468.0,87452.0,0.00012147]
[1767020386379,0.05792,87468.0,87453.0,0.11433732]
[1767020390195,0.05792,87468.0,87453.0,0.11204971]
[1767020390494,0.0114465,87466.0,87453.0,0.11204971]
[1767020390885,0.0114473,87460.0,87429.0,0.0114512]
[1767020391080,0.011449,87447.0,87428.0,0.0114514]
[1767020391389,0.05788,87451.0,87447.0,0.0114488]
[1767020391589,0.03288,87451.0,87432.0,0.00052163]
[1767020391889,0.20784578,87470.0,87432.0,0.09780163]
[1767020391890,0.09728,87458.0,87432.0,0.09780163]
[1767020392089,0.00017147,87454.0,87439.0,0.01145]
[1767020392493,0.00017147,87454.0,87443.0,0.00052163]
[1767020393194,0.0114481,87454.0,87443.0,0.00052163]
[1767020393589,0.05788,87456.0,87443.0,0.00052163]
[1767020394094,0.0114479,87455.0,87443.0,0.00052163]
[1767020394990,0.00017147,87458.0,87444.0,0.0114493]
[1767020395193,0.00017147,87458.0,87438.0,0.05788]
[1767020395194,0.0114443,87483.0,87449.0,0.00052163]
[1767020395490,0.20784578,87480.0,87449.0,0.0114486]
[1767020395696,0.0114461,87469.0,87443.0,0.09728]
[1767020395892,0.0114454,87474.0,87443.0,0.09728]
[1767020396091,0.15516,87473.0,87450.0,0.11435236]
[1767020396296,0.05788,87472.0,87452.0,0.00052163]
[1767020396486,0.0114463,87467.0,87451.0,0.0114484]
[1767020396886,0.166606,87470.0,87456.0,0.00052163]
[1767020397486,0.15516,87470.0,87456.0,0.00052163]
[1767020397898,0.15516,87470.0,87457.0,0.0114476]
[1767020398397,0.0114452,87476.0,87461.0,0.00052163]
[1767020398588,0.0114452,87476.0,87459.0,0.00915891]
[1767020399191,0.09728,87477.0,87461.0,0.011447]
[1767020399596,0.1087251,87477.0,87461.0,0.011447]
[1767020399792,0.0114459,87471.0,87460.0,0.00017147]
[1767020399999,0.0114454,87475.0,87460.0,0.00017147]
[1767020400297,0.05788,87477.0,87461.0,0.0114471]
[1767020400498,0.0114452,87476.0,87460.0,7e-08]
[1767020400721,0.0114469,87463.0,87449.0,0.05788]
[1767020401195,0.0114481,87454.0,87437.0,0.0114503]
[1767020401391,0.011448,87455.0,87437.0,0.0114503]
[1767020401585,0.0114486,87450.0,87437.0,0.00017147]
[1767020401785,0.00017147,87455.0,87437.0,0.00017147]
[1767020401991,0.00017147,87455.0,87416.0,0.09728]
[1767020402192,0.05788,87458.0,87416.0,0.09728]
[1767020402193,0.0114502,87438.0,87416.0,0.0114529]
[1767020402392,0.20784578,87440.0,87414.0,0.11435628]
[1767020402393,0.15516,87437.0,87414.0,0.11435628]
[1767020402588,0.06128438,87466.0,87414.0,0.11542635]
[1767020402788,0.15516,87465.0,87435.0,0.0114504]
[1767020402997,0.15516,87465.0,87419.0,0.0114526]
[1767020402998,0.01161897,87459.0,87441.0,0.00017157]
[1767020403296,0.0114476,87457.0,87441.0,0.00017157]
[1767020403499,0.0114481,87454.0,87441.0,0.00017157]
[1767020403696,0.0114481,87454.0,87430.0,0.09728]
[1767020403697,0.05788,87453.0,87430.0,0.09728]
[1767020403999,0.15516,87452.0,87421.0,0.0114523]
[1767020404191,0.0114488,87449.0,87427.0,0.0114516]
[1767020404386,0.01145,87439.0,87421.0,0.09728]
[1767020404705,0.00017157,87439.0,87421.0,0.09745157]
[1767020404889,0.00017157,87439.0,87421.0,1.57e-06]
[1767020405399,0.01162167,87439.0,87421.0,1.57e-06]
[1767020405596,0.0114504,87436.0,87421.0,1.57e-06]
[1767020406288,0.0114502,87438.0,87417.0,0.00916519]
[1767020406684,0.0114502,87438.0,87417.0,0.11437917]
[1767020407090,0.00017157,87439.0,87420.0,0.0114524]
[1767020407289,0.00017157,87439.0,87417.0,0.11437917]
[1767020407290,0.01162157,87439.0,87421.0,0.00017157]
[1767020407687,0.00017157,87439.0,87421.0,0.00017157]
[1767020407897,0.011451,87432.0,87421.0,1.57e-06]
[1767020408095,0.15516,87438.0,87421.0,1.57e-06]
[1767020408294,0.0114511,87431.0,87421.0,1.57e-06]
[1767020408595,0.01162167,87439.0,87421.0,1.57e-06]
[1767020408800,0.05788,87438.0,87421.0,1.57e-06]
[1767020409096,0.15516,87437.0,87426.0,0.00124164]
[1767020409502,0.15516,87437.0,87421.0,1.57e-06]
[1767020409700,0.05788,87436.0,87421.0,0.00124321]
[1767020410001,0.15516,87436.0,87421.0,1.57e-06]
[1767020410201,0.0114505,87435.0,87422.0,0.00124164]
[1767020410502,0.0114506,87435.0,87422.0,0.00124164]
[1767020410699,0.0114502,87438.0,87423.0,0.00124164]
[1767020410902,1.57e-06,87439.0,87424.0,0.00124164]
[1767020411205,0.14916,87447.0,87425.0,0.0114517]
[1767020411404,0.14916,87447.0,87421.0,1.57e-06]
[1767020411601,0.0114478,87457.0,87438.0,0.01145]
[1767020411798,0.08138616,87485.0,87429.0,0.00124164]
[1767020411799,0.09728,87458.0,87431.0,0.069331]
[1767020411989,0.0114488,87448.0,87431.0,0.05788]
[1767020412195,0.00017157,87448.0,87432.0,0.11437656]
[1767020412399,0.00017157,87448.0,87436.0,0.00124164]
[1767020413298,0.00017157,87448.0,87436.0,0.01269194]
[1767020413500,0.0114489,87448.0,87431.0,0.05805157]
[1767020413701,0.14932,87457.0,87431.0,0.00017157]
[1767020413905,0.0114481,87454.0,87431.0,1.57e-06]
[1767020414102,0.0114477,87457.0,87431.0,1.57e-06]
[1767020414291,0.0114462,87468.0,87432.0,0.0114508]
[1767020414496,0.15516,87467.0,87432.0,0.0114508]
[1767020414803,0.0114484,87452.0,87431.0,1.57e-06]
[1767020415000,0.0114487,87449.0,87431.0,1.57e-06]
[1767020415298,0.1087286,87450.0,87431.0,1.57e-06]
[1767020415504,0.00017157,87458.0,87432.0,0.11436217]
[1767020415892,0.0114481,87454.0,87434.0,0.0114506]
[1767020416201,0.0114477,87457.0,87432.0,0.11436217]
[1767020416402,0.011448,87455.0,87436.0,0.0114503]
[1767020416589,0.011448,87455.0,87437.0,0.09728]
[1767020416792,0.01161907,87458.0,87437.0,0.09728]
[1767020417195,0.0114478,87456.0,87438.0,0.1143589]
[1767020417794,0.00017157,87458.0,87438.0,0.1143589]
[1767020417795,0.0114481,87454.0,87438.0,0.1143589]
[1767020418798,0.00017157,87458.0,87437.0,0.09728]
[1767020419000,0.0114489,87448.0,87437.0,0.09728]
[1767020419198,0.0114476,87457.0,87437.0,0.09728]
[1767020419494,0.0114496,87443.0,87431.0,1.57e-06]
[1767020419714,0.0114499,87440.0,87431.0,1.57e-06]
[1767020420006,0.0114495,87444.0,87431.0,1.57e-06]
[1767020420204,0.05788,87451.0,87431.0,1.57e-06]
[1767020420407,0.0114504,87436.0,87431.0,1.57e-06]
[1767020420607,0.0114504,87436.0,87426.0,0.09728]
[1767020420805,0.0114499,87440.0,87426.0,0.09728]
[1767020421003,0.0114503,87438.0,87426.0,0.09728]
[1767020421203,0.0114506,87435.0,87426.0,0.09728]
[1767020421603,0.0114501,87438.0,87426.0,0.09728]
[1767020421801,0.00017157,87439.0,87426.0,0.09728]
[1767020421802,0.0114505,87436.0,87426.0,0.09728]
[1767020422508,0.00017157,87439.0,87422.0,0.00017157]
[1767020422909,0.01162157,87439.0,87422.0,0.00017157]
[1767020423304,0.00017157,87439.0,87422.0,7e-08]
[1767020423510,0.0114515,87428.0,87422.0,7e-08]
[1767020423709,0.011451,87432.0,87422.0,7e-08]
[1767020423901,0.0114502,87438.0,87422.0,7e-08]
[1767020424208,0.00017157,87439.0,87422.0,7e-08]
[1767020424209,0.00017157,87439.0,87422.0,0.05788007]
[1767020424409,0.07273058,87469.0,87432.0,0.0114508]
[1767020424611,0.0114483,87453.0,87429.0,0.0114513]
[1767020424807,0.0114488,87449.0,87427.0,0.09728]
[1767020425007,0.0114493,87445.0,87427.0,0.09728]
[1767020425305,0.0114499,87440.0,87427.0,0.09728]
[1767020425509,0.01145,87439.0,87427.0,0.07228]
[1767020425708,0.00017157,87442.0,87425.0,0.00017157]
[1767020425909,0.0114498,87441.0,87425.0,0.00017157]
[1767020426113,0.00017157,87442.0,87431.0,0.0114509]
[1767020426308,1.57e-06,87442.0,87431.0,0.0114509]
[1767020426710,1.57e-06,87442.0,87432.0,0.26953329]
[1767020427113,1.57e-06,87442.0,87433.0,0.0114508]
[1767020427505,1.57e-06,87442.0,87438.0,0.01145]
[1767020427818,1.57e-06,87442.0,87432.0,0.15516]
[1767020428111,0.06128438,87470.0,87432.0,0.15516]
[1767020428317,0.06128438,87470.0,87435.0,0.0114505]
[1767020428318,0.09728,87469.0,87435.0,0.0114505]
[1767020429018,0.09728,87469.0,87436.0,0.11436805]
[1767020429209,0.00017157,87461.0,87444.0,0.00017157]
[1767020429408,0.0114481,87454.0,87444.0,1.57e-06]
[1767020430118,0.0114484,87452.0,87444.0,1.57e-06]
[1767020430512,0.0114491,87446.0,87444.0,1.57e-06]
[1767020430814,0.0114495,87443.0,87420.0,0.0114524]
[1767020431016,0.0114498,87441.0,87421.0,0.15516]
[1767020431214,0.09728,87449.0,87421.0,0.15516]
[1767020431410,0.0114492,87446.0,87415.0,0.05788]
[1767020431720,0.0114492,87446.0,87422.0,0.00017157]
[1767020431721,0.0114507,87434.0,87422.0,0.00017157]
[1767020431911,0.10890167,87439.0,87422.0,7e-08]
[1767020432118,0.011452,87424.0,87422.0,7e-08]
[1767020432310,0.09728,87429.0,87406.0,0.09728]
[1767020432515,0.011453,87416.0,87401.0,0.09728]
[1767020432716,0.09728,87423.0,87399.0,0.05788]
[1767020433111,0.09728,87423.0,87390.0,0.00010225]
[1767020433112,0.09728,87423.0,87391.0,0.0114562]
[1767020433317,0.011454,87409.0,87398.0,0.00017157]
[1767020433811,0.00017157,87416.0,87398.0,7e-08]
[1767020433812,0.0114542,87408.0,87398.0,7e-08]
[1767020434014,0.00017157,87416.0,87398.0,7e-08]
[1767020434316,0.0114535,87413.0,87398.0,7e-08]
[1767020434514,0.02386517,87412.0,87398.0,7e-08]
[1767020434731,0.01162457,87416.0,87398.0,7e-08]
[1767020434917,0.0114534,87414.0,87398.0,7e-08]
[1767020435224,0.12114504,87415.0,87398.0,7e-08]
[1767020435225,0.0114536,87412.0,87398.0,7e-08]
[1767020435407,0.00017157,87416.0,87398.0,7e-08]
[1767020435612,0.02385401,87415.0,87398.0,7e-08]
[1767020435816,0.02385401,87414.0,87398.0,7e-08]
[1767020436020,0.01162457,87416.0,87398.0,7e-08]
[1767020436319,0.02385392,87415.0,87398.0,7e-08]
[1767020436518,0.00017157,87416.0,87398.0,7e-08]
[1767020436717,0.09732,87423.0,87399.0,0.0114551]
[1767020437025,0.0238453,87422.0,87399.0,0.0114551]
[1767020437218,0.0238453,87421.0,87399.0,0.0114551]
[1767020437415,0.0114526,87419.0,87399.0,0.0114551]
[1767020437718,0.0114533,87415.0,87398.0,7e-08]
[1767020437916,0.0114529,87417.0,87398.0,7e-08]
[1767020438619,0.00017157,87418.0,87398.0,7e-08]
[1767020438825,0.0114517,87426.0,87404.0,0.0114545]
[1767020439025,0.0114517,87426.0,87405.0,0.1552]
[1767020439223,0.09732,87430.0,87405.0,0.1552]
[1767020439418,0.0238313,87429.0,87405.0,0.1552]
[1767020439727,0.0114525,87421.0,87408.0,0.00017157]
[1767020439927,0.0114534,87414.0,87408.0,7e-08]
[1767020440314,0.05788,87425.0,87408.0,7e-08]
[1767020440513,0.0114528,87418.0,87408.0,7e-08]
[1767020440821,0.09732,87425.0,87408.0,7e-08]
[1767020441028,0.02382851,87424.0,87408.0,7e-08]
[1767020441326,0.0114523,87422.0,87408.0,7e-08]
[1767020441522,0.1087719,87425.0,87408.0,7e-08]
[1767020441823,0.02382532,87424.0,87408.0,7e-08]
[1767020442026,0.03527742,87423.0,87408.0,7e-08]
[1767020442235,0.00017157,87426.0,87408.0,7e-08]
[1767020442236,0.02382555,87422.0,87408.0,7e-08]
[1767020442430,0.0114519,87425.0,87408.0,7e-08]
[1767020442629,0.02382454,87424.0,87408.0,7e-08]
[1767020442831,0.02382454,87423.0,87408.0,7e-08]
[1767020443030,0.0114519,87425.0,87408.0,7e-08]
[1767020443224,0.02382446,87424.0,87408.0,7e-08]
[1767020443430,0.02382446,87423.0,87408.0,7e-08]
[1767020443729,0.0114526,87420.0,87408.0,7e-08]
[1767020443929,0.0114529,87417.0,87408.0,7e-08]
[1767020444331,0.0114525,87420.0,87408.0,7e-08]
[1767020444516,0.00017157,87426.0,87408.0,7e-08]
[1767020444725,0.02382364,87425.0,87408.0,7e-08]
[1767020444934,0.0114527,87419.0,87408.0,7e-08]
[1767020445121,0.00017157,87426.0,87408.0,7e-08]
[1767020445325,0.011452,87424.0,87408.0,7e-08]
[1767020445526,0.02382307,87423.0,87408.0,7e-08]
[1767020446226,0.00017157,87426.0,87408.0,7e-08]
[1767020446522,0.0114519,87425.0,87408.0,7e-08]
[1767020446830,0.0114522,87423.0,87408.0,7e-08]
[1767020447231,0.0114531,87416.0,87408.0,7e-08]
[1767020447625,0.0114529,87417.0,87408.0,7e-08]
[1767020447825,0.0114532,87415.0,87408.0,7e-08]
[1767020448129,0.0114537,87412.0,87399.0,0.00384]
[1767020448536,0.09732,87416.0,87399.0,0.00384]
[1767020448731,0.05788,87420.0,87399.0,0.0152951]
[1767020449033,0.1087728,87418.0,87401.0,0.00017157]
[1767020449635,0.0114531,87416.0,87401.0,0.00017157]
[1767020449828,0.09732,87418.0,87401.0,0.00017157]
[1767020450031,0.05788,87423.0,87401.0,0.00017157]
[1767020450333,0.00017157,87426.0,87408.0,0.0114539]
[1767020450537,0.0114521,87423.0,87402.0,0.1666548]
[1767020450732,0.0114525,87420.0,87402.0,0.1552]